[Event "FIDE WCCC Open-08 2024"]
[Site "Montesilvano"]
[Date "2024.11.18"]
[Round "4.17"]
[White "Singh, Ian Avery"]
[Black "Bakirli, Matin"]
[Result "1-0"]
[ECO "B42"]
[WhiteElo "1713"]
[BlackElo "1578"]
[Annotator "NA RC"]
[PlyCount "131"]
[EventDate "2024.11.18"]
[EventType "swiss"]
[EventCountry "ITA"]
[SourceTitle "playchess.com"]
[Source "ChessBase"]
[SourceQuality "1"]
[TimeControl "5400+30"]

1. e4 {[%emt 0:00:02]} c5 {[%emt 0:00:09]} 2. Nf3 {[%emt 0:00:04]} e6 {[%emt 0:00:05]} 3. d4 {[%emt 0:00:04]} cxd4 {[%emt 0:00:03]} 4. Nxd4 {[%emt 0:00:07]} a6 {[%emt 0:00:05]} 5. Bd3 {[%emt 0:00:05]} Qc7 {[%emt 0:00:06]} 6. O-O {[%emt 0:00:07]} Nf6 {[%emt 0:00:08]} 7. Qe2 {[%emt 0:00:05]} Nc6 {[%emt 0:00:22]} 8. Nxc6 {[%emt 0:02:31]} bxc6 {[%emt 1:33:32]} 9. c4 {[%emt 0:05:06]} d6 {[%emt 0:00:00]} 10. Nc3 {[%emt 0:00:33]} Be7 {[%emt 0:00:00]} 11. f4 {[%emt 0:03:38]} e5 {[%emt 0:00:00]} 12. h3 {[%emt 0:09:19]} O-O {[%emt 0:00:00]} 13. f5 {[%emt 0:06:45]} Nd7 {[%emt 0:00:00]} 14. Be3 {[%emt 0:04:41]} Bb7 {[%emt 0:00:00]} 15. Rac1 {[%emt 0:12:24]} c5 {[%emt 0:00:00]} 16. Nd5 {[%emt 0:02:28]} Bxd5 {[%emt 0:00:00]} 17. cxd5 {[%emt 0:04:23]} Qb7 {[%emt 0:00:00]} 18. Rc3 {[%emt 0:04:11]} a5 {[%emt 0:00:00]} 19. Rb3 {[%emt 0:02:42]} Qc7 {[%emt 0:00:00]} 20. Rb5 {[%emt 0:04:08]} Rfb8 {[%emt 0:00:00]} 21. a4 {[%emt 0:02:43]} Rc8 {[%emt 0:00:00]} 22. b3 {[%emt 0:03:31]} f6 {[%emt 0:00:00]} 23. Rf3 {[%emt 0:03:18]} Rf8 {[%emt 0:00:00]} 24. g4 {[%emt 0:03:46]} Ra7 {[%emt 0:00:00]} 25. h4 {[%emt 0:02:22]} Kf7 {[%emt 0:00:00]} 26. g5 {[%emt 0:05:47]} Ke8 {[%emt 0:00:00]} 27. Rg3 {[%emt 0:02:38]} fxg5 {[%emt 0:03:01]} 28. hxg5 {[%emt 0:01:04]} g6 {[%emt 0:02:10]} 29. f6 {[%emt 0:00:44]} Bd8 {[%emt 0:01:04]} 30. Qg4 {[%emt 0:00:40]} Rf7 {[%emt 0:00:41]} 31. Qe6+ {[%emt 0:02:16]} Kf8 {[%emt 0:00:19]} 32. Be2 {[%emt 0:03:18]} Rb7 {[%emt 0:01:25]} 33. Rxb7 {[%emt 0:00:15]} Qxb7 {[%emt 0:00:07]} 34. Qxd6+ {[%emt 0:00:33]} Kg8 {[%emt 0:00:14]} 35. Bb5 {[%emt 0:07:39]} Bb6 {[%emt 0:02:31]} 36. Bc6 {[%emt 0:01:12]} Qa7 {[%emt 0:01:24]} 37. Bxd7 {[%emt 0:01:52]} Rxd7 {[%emt 0:00:45]} 38. Qxe5 {[%emt 0:00:26]} Rf7 {[%emt 0:00:35]} 39. Qe8+ {[%emt 0:00:21]} Rf8 {[%emt 0:00:05]} 40. f7+ {[%emt 0:00:40]} Qxf7 {[%emt 0:01:04]} 41. Qxf7+ {[%emt 0:00:34]} Rxf7 {[%emt 0:00:29]} 42. Bf2 {[%emt 0:00:54]} Kf8 {[%emt 0:00:18]} 43. Rc3 {[%emt 0:00:16]} Re7 {[%emt 0:00:45]} 44. Rxc5 {[%emt 0:00:59]} Bc7 {[%emt 0:00:27]} 45. Rc4 {[%emt 0:00:37]} Bd6 {[%emt 0:00:14]} 46. Be1 {[%emt 0:00:56]} Re5 {[%emt 0:00:34]} 47. Bxa5 {[%emt 0:00:39]} Rxg5+ {[%emt 0:00:06]} 48. Kf1 {[%emt 0:00:08]} h5 {[%emt 0:00:47]} 49. Rc8+ {[%emt 0:00:47]} Ke7 {[%emt 0:00:47]} 50. Bd8+ {[%emt 0:00:09]} Kd7 {[%emt 0:00:06]} 51. Bxg5 {[%emt 0:00:28]} Kxc8 {[%emt 0:00:03]} 52. Bf6 {[%emt 0:00:20]} Kd7 {[%emt 0:00:13]} 53. Ke2 {[%emt 0:00:22]} Bf4 {[%emt 0:00:35]} 54. a5 {[%emt 0:00:37]} Kc7 {[%emt 0:00:42]} 55. b4 {[%emt 0:00:14]} g5 {[%emt 0:00:39]} 56. a6 {[%emt 0:00:28]} Kb6 {[%emt 0:00:19]} 57. b5 {[%emt 0:00:10]} g4 {[%emt 0:00:43]} 58. e5 {[%emt 0:00:17]} h4 {[%emt 0:00:25]} 59. e6 {[%emt 0:00:47]} h3 {[%emt 0:00:31]} 60. e7 {[%emt 0:00:19]} h2 {[%emt 0:00:09]} 61. e8=Q {[%emt 0:00:04]} h1=Q {[%emt 0:00:12]} 62. Qc6+ {[%emt 0:00:27]} Ka5 {[%emt 0:00:06]} 63. Bc3+ {[%emt 0:00:42]} Ka4 {[%emt 0:00:08]} 64. Qc4+ {[%emt 0:00:40]} Ka3 {[%emt 0:00:04]} 65. Qb4+ {[%emt 0:00:23]} Ka2 {[%emt 0:00:05]} 66. Qb2# {[%emt 0:00:08]} 1-0

[Event "FIDE WCCC Open-08 2024"]
[Site "Montesilvano"]
[Date "2024.11.18"]
[Round "4.18"]
[White "Tuguldur, Baatarchuluun"]
[Black "Vo, Daniel"]
[Result "1-0"]
[ECO "B22"]
[WhiteElo "1590"]
[BlackElo "1711"]
[Annotator "NA RC"]
[PlyCount "117"]
[EventDate "2024.11.18"]
[EventType "swiss"]
[EventCountry "ITA"]
[SourceTitle "playchess.com"]
[Source "ChessBase"]
[SourceQuality "1"]
[TimeControl "5400+30"]

1. e4 {[%emt 0:00:40]} c5 {[%emt 0:00:30]} 2. c3 {[%emt 0:00:56]} d5 {[%emt 0:00:25]} 3. exd5 {[%emt 0:01:14]} Qxd5 {[%emt 0:00:29]} 4. d4 {[%emt 0:01:55]} Nc6 {[%emt 0:01:23]} 5. Nf3 {[%emt 0:00:14]} Bg4 {[%emt 0:03:56]} 6. Be2 {[%emt 0:00:08]} cxd4 {[%emt 0:02:04]} 7. cxd4 {[%emt 0:00:12]} e6 {[%emt 0:00:42]} 8. Nc3 {[%emt 0:00:10]} Bb4 {[%emt 0:00:40]} 9. O-O {[%emt 0:00:10]} Qa5 {[%emt 0:01:34]} 10. Ne4 {[%emt 0:01:16]} Bf5 {[%emt 0:07:33]} 11. Ng3 {[%emt 0:04:26]} Bg6 {[%emt 0:02:00]} 12. a3 {[%emt 0:00:37]} Nf6 {[%emt 0:03:47]} 13. Be3 {[%emt 0:01:56]} Be7 {[%emt 0:03:00]} 14. Qb3 {[%emt 0:06:54]} Qb6 {[%emt 0:05:21]} 15. Bb5 {[%emt 0:01:53]} Nd5 {[%emt 0:08:52]} 16. Ne5 {[%emt 0:00:48]} Rc8 {[%emt 0:17:30]} 17. Rac1 {[%emt 0:03:07]} f6 {[%emt 0:03:45]} 18. Bxc6+ {[%emt 0:03:38]} Rxc6 {[%emt 0:01:11]} 19. Qxb6 {[%emt 0:03:28]} Rxb6 {[%emt 0:02:25]} 20. Rc8+ {[%emt 0:00:59]} Bd8 {[%emt 0:00:20]} 21. Nc4 {[%emt 0:01:32]} Rc6 {[%emt 0:01:44]} 22. Rxc6 {[%emt 0:01:01]} bxc6 {[%emt 0:00:50]} 23. Rc1 {[%emt 0:00:39]} Kd7 {[%emt 0:01:07]} 24. Nf1 {[%emt 0:02:15]} Bc7 {[%emt 0:01:33]} 25. Nfd2 {[%emt 0:01:08]} Rb8 {[%emt 0:01:16]} 26. b4 {[%emt 0:00:17]} h5 {[%emt 0:02:07]} 27. Nb3 {[%emt 0:00:11]} Be8 {[%emt 0:01:42]} 28. Nc5+ {[%emt 0:00:42]} Ke7 {[%emt 0:00:49]} 29. Re1 {[%emt 0:01:34]} Bf7 {[%emt 0:00:43]} 30. Bd2 {[%emt 0:01:13]} g6 {[%emt 0:01:06]} 31. g3 {[%emt 0:00:40]} Re8 {[%emt 0:01:15]} 32. Rb1 {[%emt 0:04:57]} Nb6 {[%emt 0:01:19]} 33. Na5 {[%emt 0:00:35]} Kd6 {[%emt 0:01:33]} 34. Bf4+ {[%emt 0:00:59]} e5 {[%emt 0:01:21]} 35. dxe5+ {[%emt 0:00:07]} fxe5 {[%emt 0:00:11]} 36. Bg5 {[%emt 0:01:10]} Bb8 {[%emt 0:04:07]} 37. f4 {[%emt 0:02:02]} e4 {[%emt 0:01:04]} 38. f5 {[%emt 0:00:39]} Nd5 {[%emt 0:02:06]} 39. Rd1 {[%emt 0:00:56]} Kc7 {[%emt 0:00:59]} 40. a4 {[%emt 0:01:44]} e3 {[%emt 0:00:39]} 41. Bf4+ {[%emt 0:03:28]} Nxf4 {[%emt 0:01:02]} 42. Rd7+ {[%emt 0:00:25]} Kc8 {[%emt 0:00:26]} 43. Nxc6 {[%emt 0:00:58]} Nd5 {[%emt 0:01:27]} 44. Rxf7 {[%emt 0:02:18]} e2 {[%emt 0:01:50]} 45. Nd3 {[%emt 0:00:19]} e1=Q+ {[%emt 0:01:24]} 46. Nxe1 {[%emt 0:00:09]} Rxe1+ {[%emt 0:00:31]} 47. Kf2 {[%emt 0:00:05]} Re8 {[%emt 0:00:47]} 48. fxg6 {[%emt 0:00:25]} Bd6 {[%emt 0:05:52]} 49. Nxa7+ {[%emt 0:02:14]} Kb8 {[%emt 0:00:17]} 50. Nc6+ {[%emt 0:00:34]} Kc8 {[%emt 0:00:10]} 51. g7 {[%emt 0:00:32]} Ne7 {[%emt 0:00:31]} 52. Nxe7+ {[%emt 0:00:30]} Bxe7 {[%emt 0:00:19]} 53. Rxe7 {[%emt 0:00:09]} Rg8 {[%emt 0:01:15]} 54. Rf7 {[%emt 0:46:22]} Rxg7 {[%emt 0:00:13]} 55. Rxg7 {[%emt 0:00:00]} Kb8 {[%emt 0:00:46]} 56. a5 {[%emt 0:00:00]} Ka8 {[%emt 0:00:05]} 57. Ke3 {[%emt 0:00:00]} Kb8 {[%emt 0:00:09]} 58. Kd4 {[%emt 0:00:00]} Ka8 {[%emt 0:00:11]} 59. Kc5 {[%emt 0:02:30]} 1-0

[Event "FIDE WCCC Open-08 2024"]
[Site "Montesilvano"]
[Date "2024.11.18"]
[Round "4.19"]
[White "Kavish Palaniappan K"]
[Black "Meiyazhagan, Kaviinayan"]
[Result "1-0"]
[ECO "C54"]
[WhiteElo "1589"]
[BlackElo "1707"]
[Annotator "NA RC"]
[PlyCount "59"]
[EventDate "2024.11.18"]
[EventType "swiss"]
[EventCountry "ITA"]
[SourceTitle "playchess.com"]
[Source "ChessBase"]
[SourceQuality "1"]
[TimeControl "5400+30"]

1. e4 {[%emt 0:00:01]} e5 {[%emt 0:00:08]} 2. Nf3 {[%emt 0:00:14]} Nc6 {[%emt 0:00:09]} 3. Bc4 {[%emt 0:00:12]} Bc5 {[%emt 0:00:08]} 4. c3 {[%emt 0:00:26]} Nf6 {[%emt 0:01:20]} 5. d4 {[%emt 0:00:15]} exd4 {[%emt 0:00:13]} 6. e5 {[%emt 0:00:06]} d5 {[%emt 0:00:06]} 7. Bb5 {[%emt 0:00:33]} Ne4 {[%emt 0:00:31]} 8. cxd4 {[%emt 0:00:08]} Bb4+ {[%emt 0:00:55]} 9. Bd2 {[%emt 0:00:09]} Bxd2+ {[%emt 0:00:30]} 10. Nbxd2 {[%emt 0:00:11]} Bg4 {[%emt 0:00:12]} 11. Qc2 {[%emt 0:00:11]} O-O {[%emt 0:02:33]} 12. Bxc6 {[%emt 0:06:34]} bxc6 {[%emt 0:00:11]} 13. Qxc6 {[%emt 0:02:58]} Rb8 {[%emt 0:36:53]} 14. b3 {[%emt 0:07:54]} Rb4 {[%emt 0:17:36]} 15. h3 {[%emt 0:16:48]} Bf5 {[%emt 0:07:10]} 16. Qc1 {[%emt 0:06:44]} Rb6 {[%emt 0:05:10]} 17. O-O {[%emt 0:02:34]} Rg6 {[%emt 0:00:08]} 18. Kh2 {[%emt 0:00:44]} Rh6 {[%emt 0:07:42]} 19. Kg1 {[%emt 0:19:46]} Qd7 {[%emt 0:06:11]} 20. Nxe4 {[%emt 0:08:17]} dxe4 {[%emt 0:00:51]} 21. Ng5 {[%emt 0:00:11]} Qxd4 {[%emt 0:02:35]} 22. Qf4 {[%emt 0:00:18]} Bg6 {[%emt 0:02:20]} 23. Rad1 {[%emt 0:04:22]} Qb4 {[%emt 0:02:01]} 24. Rfe1 {[%emt 0:05:01]} Qa5 {[%emt 0:00:00]} 25. Nxe4 {[%emt 0:04:40]} Bxe4 {[%emt 0:00:31]} 26. Qxe4 {[%emt 0:00:07]} Qxa2 {[%emt 0:00:42]} 27. Qc4 {[%emt 0:01:03]} Rb6 {[%emt 0:01:16]} 28. Re3 {[%emt 0:04:10]} c5 {[%emt 0:02:20]} 29. Rf3 {[%emt 0:02:27]} Qb2 {[%emt 0:02:35]} 30. Qxf7+ {[%emt 0:00:05]} 1-0

[Event "FIDE WCCC Open-08 2024"]
[Site "Montesilvano"]
[Date "2024.11.18"]
[Round "4.20"]
[White "Mohamed Fouad, Yahia"]
[Black "Kalinin, Bogdan"]
[Result "1/2-1/2"]
[ECO "A62"]
[WhiteElo "1705"]
[BlackElo "1548"]
[Annotator "NA RC"]
[PlyCount "86"]
[EventDate "2024.11.18"]
[EventType "swiss"]
[EventCountry "ITA"]
[SourceTitle "playchess.com"]
[Source "ChessBase"]
[SourceQuality "1"]
[TimeControl "5400+30"]

1. d4 {[%emt 0:00:02]} Nf6 {[%emt 0:00:09]} 2. c4 {[%emt 0:00:22]} c5 {[%emt 0:00:06]} 3. d5 {[%emt 0:00:23]} e6 {[%emt 0:00:18]} 4. Nc3 {[%emt 0:01:02]} exd5 {[%emt 0:00:13]} 5. cxd5 {[%emt 0:00:46]} d6 {[%emt 0:00:07]} 6. Nf3 {[%emt 0:00:28]} g6 {[%emt 0:00:28]} 7. g3 {[%emt 0:07:55]} Bg7 {[%emt 0:00:21]} 8. Bg2 {[%emt 0:01:48]} O-O {[%emt 0:00:19]} 9. O-O {[%emt 0:01:03]} Bg4 {[%emt 0:00:17]} 10. Bf4 {[%emt 0:03:46]} Bxf3 {[%emt 0:00:58]} 11. Bxf3 {[%emt 0:00:45]} Qd7 {[%emt 0:00:45]} 12. Qb3 {[%emt 0:01:33]} Rc8 {[%emt 0:01:57]} 13. Nb5 {[%emt 0:05:40]} c4 {[%emt 0:03:38]} 14. Qb4 {[%emt 0:01:00]} a5 {[%emt 0:00:29]} 15. Qa4 {[%emt 0:00:10]} Rc5 {[%emt 0:00:24]} 16. Nc3 {[%emt 0:00:21]} b5 {[%emt 0:00:12]} 17. Qc2 {[%emt 0:00:32]} Na6 {[%emt 0:03:32]} 18. a3 {[%emt 0:01:59]} Rcc8 {[%emt 0:08:02]} 19. Rfd1 {[%emt 0:16:17]} b4 {[%emt 0:02:25]} 20. axb4 {[%emt 0:09:35]} axb4 {[%emt 0:07:31]} 21. Ne4 {[%emt 0:01:30]} Nxe4 {[%emt 0:01:23]} 22. Bxe4 {[%emt 0:02:12]} c3 {[%emt 0:02:06]} 23. b3 {[%emt 0:01:36]} Nc5 {[%emt 0:01:11]} 24. Bf3 {[%emt 0:01:38]} Qf5 {[%emt 0:28:48]} 25. e4 {[%emt 0:02:39]} Qf6 {[%emt 0:04:43]} 26. Bg4 {[%emt 0:00:59]} Re8 {[%emt 0:02:23]} 27. Bf3 {[%emt 0:02:39]} Rxa1 {[%emt 0:01:19]} 28. Rxa1 {[%emt 0:35:50]} g5 {[%emt 0:00:11]} 29. e5 {[%emt 0:00:00]} dxe5 {[%emt 0:02:42]} 30. Be3 {[%emt 0:00:00]} Qxf3 {[%emt 0:01:07]} 31. Bxc5 {[%emt 0:00:00]} Qxd5 {[%emt 0:00:29]} 32. Bxb4 {[%emt 0:00:00]} e4 {[%emt 0:00:30]} 33. Rd1 {[%emt 0:00:00]} Qa8 {[%emt 0:07:48]} 34. Bc5 {[%emt 0:00:00]} f5 {[%emt 0:02:28]} 35. Rd7 {[%emt 0:00:00]} Qa1+ {[%emt 0:01:47]} 36. Kg2 {[%emt 0:00:00]} h5 {[%emt 0:06:22]} 37. Bb4 {[%emt 0:00:00]} Bf6 {[%emt 0:02:49]} 38. Qe2 {[%emt 0:00:00]} e3 {[%emt 0:05:23]} 39. Qxh5 {[%emt 0:00:00]} Qa8+ {[%emt 0:00:13]} 40. Kg1 {[%emt 0:00:00]} exf2+ {[%emt 0:00:39]} 41. Kxf2 {[%emt 0:00:00]} Qa2+ {[%emt 0:00:20]} 42. Kf1 {[%emt 0:00:00]} Qb1+ {[%emt 0:00:33]} 43. Rd1 {[%emt 0:00:00]} c2 {[%emt 0:01:52]} 1/2-1/2

[Event "FIDE WCCC Open-08 2024"]
[Site "Montesilvano"]
[Date "2024.11.18"]
[Round "4.21"]
[White "Guo, Philipp Ziming"]
[Black "Mankovich, Yoav"]
[Result "1/2-1/2"]
[ECO "A58"]
[WhiteElo "2139"]
[BlackElo "1490"]
[Annotator "RC"]
[PlyCount "64"]
[EventDate "2024.11.18"]
[EventType "swiss"]
[EventCountry "ITA"]
[SourceTitle "playchess.com"]
[Source "ChessBase"]
[SourceQuality "1"]
[TimeControl "5400+30"]

1. d4 {[%emt 1:31:00]} Nf6 {[%emt 0:00:11]} 2. c4 {[%emt 0:00:00]} c5 {[%emt 0:00:33]} 3. d5 {[%emt 0:00:00]} b5 {[%emt 0:00:10]} 4. cxb5 {[%emt 0:01:30]} a6 {[%emt 0:00:24]} 5. e3 {[%emt 0:00:00]} d6 {[%emt 0:02:00]} 6. Nc3 {[%emt 0:00:00]} g6 {[%emt 0:02:11]} 7. Nf3 {[%emt 0:00:00]} Bg7 {[%emt 0:00:32]} 8. Be2 {[%emt 0:00:00]} O-O {[%emt 0:01:44]} 9. O-O {[%emt 0:00:00]} axb5 {[%emt 0:01:38]} 10. Bxb5 {[%emt 0:00:00]} Ba6 {[%emt 0:01:17]} 11. Bxa6 {[%emt 0:00:00]} Rxa6 {[%emt 0:01:41]} 12. Nd2 {[%emt 0:00:00]} Nbd7 {[%emt 0:00:34]} 13. e4 {[%emt 0:00:00]} Qa5 {[%emt 0:09:55]} 14. Nc4 {[%emt 0:00:00]} Qb4 {[%emt 0:00:41]} 15. Qe2 {[%emt 0:00:00]} Ra7 {[%emt 0:02:28]} 16. Bd2 {[%emt 0:00:00]} Qb7 {[%emt 0:02:39]} 17. a4 {[%emt 0:00:00]} Nb6 {[%emt 0:00:38]} 18. Nxb6 {[%emt 0:00:00]} Qxb6 {[%emt 0:00:10]} 19. Nb5 {[%emt 0:00:00]} Ra6 {[%emt 0:01:32]} 20. Ra2 {[%emt 0:00:00]} Nd7 {[%emt 0:03:07]} 21. Rc1 {[%emt 0:00:00]} Ne5 {[%emt 0:01:54]} 22. f4 {[%emt 0:00:00]} Nd7 {[%emt 0:02:42]} 23. Be3 {[%emt 0:00:00]} Re8 {[%emt 0:17:39]} 24. Nc7 {[%emt 0:00:00]} Rxa4 {[%emt 0:01:03]} 25. Rxa4 {[%emt 0:00:00]} Qxc7 {[%emt 0:00:22]} 26. b4 {[%emt 0:00:00]} Rb8 {[%emt 0:01:15]} 27. bxc5 {[%emt 0:11:30]} Nxc5 {[%emt 0:45:00]} 28. Bxc5 {[%emt 0:00:00]} dxc5 {[%emt 0:00:00]} 29. e5 {[%emt 0:00:00]} f6 {[%emt 0:00:00]} 30. Rac4 {[%emt 0:00:00]} fxe5 {[%emt 0:00:00]} 31. Rxc5 {[%emt 0:00:00]} Qb6 {[%emt 0:00:00]} 32. fxe5 {[%emt 0:00:00]} Bh6 {[%emt 0:00:00]} 1/2-1/2

[Event "FIDE WCCC Open-08 2024"]
[Site "Montesilvano"]
[Date "2024.11.18"]
[Round "4.22"]
[White "Su, Milo"]
[Black "Reclik, Jakub"]
[Result "1-0"]
[ECO "B27"]
[WhiteElo "1696"]
[BlackElo "1458"]
[Annotator "NA RC"]
[PlyCount "129"]
[EventDate "2024.11.18"]
[EventType "swiss"]
[EventCountry "ITA"]
[SourceTitle "playchess.com"]
[Source "ChessBase"]
[SourceQuality "1"]
[TimeControl "5400+30"]

1. e4 {[%emt 0:00:02]} c5 {[%emt 0:00:11]} 2. Nc3 {[%emt 0:00:07]} g6 {[%emt 0:00:27]} 3. d4 {[%emt 0:00:05]} cxd4 {[%emt 0:02:05]} 4. Qxd4 {[%emt 0:00:10]} Nf6 {[%emt 0:00:22]} 5. Nf3 {[%emt 0:00:09]} Nc6 {[%emt 0:00:50]} 6. Qa4 {[%emt 0:00:03]} d6 {[%emt 0:01:20]} 7. e5 {[%emt 0:00:06]} dxe5 {[%emt 0:03:53]} 8. Nxe5 {[%emt 0:00:09]} Bd7 {[%emt 0:02:13]} 9. Nxd7 {[%emt 1:34:09]} Qxd7 {[%emt 0:00:52]} 10. Be3 {[%emt 0:00:00]} Bg7 {[%emt 0:00:53]} 11. Bb5 {[%emt 0:00:00]} O-O {[%emt 0:07:06]} 12. O-O {[%emt 0:00:00]} Rfc8 {[%emt 0:03:19]} 13. Rad1 {[%emt 0:00:00]} Qe8 {[%emt 0:10:19]} 14. Rfe1 {[%emt 0:00:00]} a6 {[%emt 0:04:18]} 15. Bd3 {[%emt 0:00:00]} b5 {[%emt 0:11:56]} 16. Qb3 {[%emt 0:00:00]} Rcb8 {[%emt 0:07:54]} 17. Ne4 {[%emt 0:00:00]} Nxe4 {[%emt 0:06:17]} 18. Bxe4 {[%emt 0:00:00]} Rc8 {[%emt 0:00:25]} 19. Bg5 {[%emt 0:00:00]} Ra7 {[%emt 0:05:12]} 20. Qe3 {[%emt 0:00:00]} Rcc7 {[%emt 0:03:54]} 21. Bxc6 {[%emt 0:00:00]} Qxc6 {[%emt 0:01:48]} 22. Rd8+ {[%emt 0:00:00]} Bf8 {[%emt 0:00:29]} 23. Bh6 {[%emt 0:00:00]} Rc8 {[%emt 0:00:27]} 24. Rxc8 {[%emt 0:00:00]} Qxc8 {[%emt 0:00:06]} 25. Bxf8 {[%emt 0:00:00]} Ra8 {[%emt 0:01:12]} 26. Bxe7 {[%emt 0:00:00]} Qxc2 {[%emt 0:00:31]} 27. Bf6 {[%emt 0:00:00]} Qc8 {[%emt 0:00:29]} 28. Rd1 {[%emt 0:00:00]} Qf8 {[%emt 0:00:45]} 29. Qf3 {[%emt 0:00:00]} Re8 {[%emt 0:01:49]} 30. Qc6 {[%emt 0:00:00]} Rc8 {[%emt 0:03:11]} 31. Qxc8 {[%emt 0:00:00]} Qxc8 {[%emt 0:00:14]} 32. Rd8+ {[%emt 0:00:00]} Qxd8 {[%emt 0:00:16]} 33. Bxd8 {[%emt 0:00:00]} Kf8 {[%emt 0:00:06]} 34. Bf6 {[%emt 0:00:00]} Ke8 {[%emt 0:00:06]} 35. f3 {[%emt 0:00:00]} Kd7 {[%emt 0:00:03]} 36. Kf2 {[%emt 0:00:00]} Ke6 {[%emt 0:00:04]} 37. Bd4 {[%emt 0:00:00]} Kd5 {[%emt 0:00:08]} 38. Ke3 {[%emt 0:00:00]} f5 {[%emt 0:00:30]} 39. b3 {[%emt 0:00:00]} a5 {[%emt 0:01:56]} 40. Kd3 {[%emt 0:00:00]} a4 {[%emt 0:00:52]} 41. bxa4 {[%emt 0:00:00]} bxa4 {[%emt 0:00:08]} 42. a3 {[%emt 0:00:00]} h6 {[%emt 0:00:30]} 43. g4 {[%emt 0:00:00]} h5 {[%emt 0:04:22]} 44. gxh5 {[%emt 0:00:00]} gxh5 {[%emt 0:00:09]} 45. h3 {[%emt 0:00:00]} Ke6 {[%emt 0:01:47]} 46. f4 {[%emt 0:00:00]} Kd5 {[%emt 0:02:17]} 47. h4 {[%emt 0:00:00]} Kc6 {[%emt 0:00:53]} 48. Kc4 {[%emt 0:00:00]} Kd6 {[%emt 0:01:09]} 49. Kb4 {[%emt 0:00:00]} Kd5 {[%emt 0:00:07]} 50. Bf6 {[%emt 0:00:00]} Ke4 {[%emt 0:00:06]} 51. Kxa4 {[%emt 0:00:00]} Kxf4 {[%emt 0:00:08]} 52. Kb4 {[%emt 0:00:00]} Ke4 {[%emt 0:00:56]} 53. Bg5 {[%emt 0:00:00]} f4 {[%emt 0:00:07]} 54. Bxf4 {[%emt 0:00:00]} Kxf4 {[%emt 0:00:10]} 55. a4 {[%emt 0:00:00]} Kg4 {[%emt 0:00:51]} 56. a5 {[%emt 0:00:00]} Kxh4 {[%emt 0:00:07]} 57. a6 {[%emt 0:00:00]} Kg3 {[%emt 0:16:25]} 58. a7 {[%emt 0:00:00]} Kg2 {[%emt 0:00:00]} 59. a8=Q+ {[%emt 0:00:00]} Kg3 {[%emt 0:00:00]} 60. Qh1 {[%emt 0:00:00]} h4 {[%emt 0:00:00]} 61. Kc3 {[%emt 0:00:00]} h3 {[%emt 0:00:00]} 62. Kd3 {[%emt 0:00:00]} h2 {[%emt 0:00:00]} 63. Ke3 {[%emt 0:00:00]} Kh3 {[%emt 0:00:00]} 64. Kf4 {[%emt 0:00:00]} Kh4 {[%emt 0:00:00]} 65. Qxh2# {[%emt 0:00:00]} 1-0

[Event "FIDE WCCC Open-08 2024"]
[Site "Montesilvano"]
[Date "2024.11.18"]
[Round "4.23"]
[White "Tokmachov, Daniel"]
[Black "Petrenko, Tymofii"]
[Result "0-1"]
[ECO "B22"]
[WhiteElo "1565"]
[BlackElo "1678"]
[Annotator "NA RC"]
[PlyCount "132"]
[EventDate "2024.11.18"]
[EventType "swiss"]
[EventCountry "ITA"]
[SourceTitle "playchess.com"]
[Source "ChessBase"]
[SourceQuality "1"]
[TimeControl "5400+30"]

1. e4 {[%emt 0:00:03]} c5 {[%emt 0:00:08]} 2. c3 {[%emt 0:00:03]} d5 {[%emt 0:00:10]} 3. exd5 {[%emt 0:00:34]} Qxd5 {[%emt 0:00:10]} 4. d4 {[%emt 0:00:25]} Nc6 {[%emt 0:00:19]} 5. Nf3 {[%emt 0:03:56]} e6 {[%emt 0:00:21]} 6. Be3 {[%emt 0:03:21]} Nf6 {[%emt 0:01:19]} 7. h3 {[%emt 0:15:38]} Be7 {[%emt 0:03:25]} 8. Be2 {[%emt 0:05:53]} O-O {[%emt 0:06:16]} 9. O-O {[%emt 0:05:07]} cxd4 {[%emt 1:22:52]} 10. Nxd4 {[%emt 0:03:48]} Nxd4 {[%emt 0:00:00]} 11. Qxd4 {[%emt 0:00:09]} Rd8 {[%emt 0:00:00]} 12. Rd1 {[%emt 0:07:02]} Qa5 {[%emt 0:00:00]} 13. Qc4 {[%emt 0:07:33]} Bd7 {[%emt 0:00:00]} 14. Nd2 {[%emt 0:04:38]} Rac8 {[%emt 0:00:00]} 15. Qf4 {[%emt 0:01:29]} Nd5 {[%emt 0:00:00]} 16. Qg3 {[%emt 0:00:16]} Nxe3 {[%emt 0:00:00]} 17. fxe3 {[%emt 0:02:34]} Bb5 {[%emt 0:00:00]} 18. Nb3 {[%emt 0:02:15]} Rxd1+ {[%emt 0:00:00]} 19. Bxd1 {[%emt 0:03:53]} Qb6 {[%emt 0:00:00]} 20. Bc2 {[%emt 0:02:01]} g6 {[%emt 0:00:00]} 21. Rd1 {[%emt 0:03:18]} Rd8 {[%emt 0:00:00]} 22. Rxd8+ {[%emt 0:02:37]} Bxd8 {[%emt 0:00:00]} 23. Kh1 {[%emt 0:02:47]} Bc7 {[%emt 0:00:00]} 24. Qf2 {[%emt 0:03:10]} Bc6 {[%emt 0:00:00]} 25. Bd3 {[%emt 0:03:29]} Be5 {[%emt 0:00:00]} 26. Nd4 {[%emt 0:00:41]} Bxd4 {[%emt 0:00:00]} 27. exd4 {[%emt 0:00:19]} Qa5 {[%emt 0:00:00]} 28. a3 {[%emt 0:00:19]} Qh5 {[%emt 0:00:00]} 29. Qe3 {[%emt 0:01:55]} Qd5 {[%emt 0:00:00]} 30. Qg3 {[%emt 0:01:00]} h5 {[%emt 0:00:00]} 31. h4 {[%emt 0:00:53]} a5 {[%emt 0:00:00]} 32. Qf2 {[%emt 0:03:17]} b5 {[%emt 0:00:00]} 33. Be2 {[%emt 0:00:17]} Qe4 {[%emt 0:00:00]} 34. Bf3 {[%emt 0:00:34]} Qf5 {[%emt 0:00:00]} 35. Kg1 {[%emt 0:00:31]} Bd7 {[%emt 0:00:00]} 36. Bd1 {[%emt 0:02:24]} Qe4 {[%emt 0:00:00]} 37. Bf3 {[%emt 0:01:39]} Qf4 {[%emt 0:00:00]} 38. Bd1 {[%emt 0:01:01]} Qd6 {[%emt 0:00:00]} 39. Qd2 {[%emt 0:00:59]} Bc6 {[%emt 0:00:00]} 40. Qf2 {[%emt 0:01:42]} Kg7 {[%emt 0:00:00]} 41. Bf3 {[%emt 0:00:20]} Bd7 {[%emt 0:00:00]} 42. Bd1 {[%emt 0:01:20]} Qd5 {[%emt 0:00:00]} 43. Qf3 {[%emt 0:00:35]} Qa2 {[%emt 0:00:00]} 44. Qe2 {[%emt 0:00:27]} Qa1 {[%emt 0:00:00]} 45. Qe5+ {[%emt 0:06:48]} Kf8 {[%emt 0:00:00]} 46. Qe2 {[%emt 0:00:00]} b4 {[%emt 0:00:00]} 47. Kf2 {[%emt 0:00:00]} bxa3 {[%emt 0:00:00]} 48. bxa3 {[%emt 0:00:00]} Qxc3 {[%emt 0:00:00]} 49. Qe3 {[%emt 0:00:00]} Qb2+ {[%emt 0:00:00]} 50. Ke1 {[%emt 0:00:00]} Qa1 {[%emt 0:00:00]} 51. Kf2 {[%emt 0:00:00]} Qxd1 {[%emt 0:00:00]} 52. Qe5 {[%emt 0:00:00]} Qd2+ {[%emt 0:00:00]} 53. Kg3 {[%emt 0:00:00]} Qc3+ {[%emt 0:00:00]} 54. Kh2 {[%emt 0:00:00]} Qxa3 {[%emt 0:00:00]} 55. Qb8+ {[%emt 0:00:00]} Ke7 {[%emt 0:00:00]} 56. Qb1 {[%emt 0:00:00]} Qd6+ {[%emt 0:00:00]} 57. g3 {[%emt 0:00:00]} Qxd4 {[%emt 0:00:00]} 58. Qc1 {[%emt 0:00:01]} Qf2+ {[%emt 0:00:00]} 59. Kh1 {[%emt 0:00:05]} Qf3+ {[%emt 0:00:00]} 60. Kh2 {[%emt 0:00:09]} Bc6 {[%emt 0:00:00]} 61. Qg5+ {[%emt 0:00:10]} f6 {[%emt 0:00:00]} 62. Qc5+ {[%emt 0:00:05]} Kf7 {[%emt 0:00:00]} 63. Qa7+ {[%emt 0:00:12]} Bb7 {[%emt 0:00:00]} 64. Qg1 {[%emt 0:00:08]} a4 {[%emt 0:00:00]} 65. g4 {[%emt 0:00:21]} hxg4 {[%emt 0:00:00]} 66. h5 {[%emt 0:00:19]} Qh3# {[%emt 0:00:00]} 0-1